fUST/lending_fUST_20250720
["ID","MTS","AMOUNT","RATE_DAILY","PERIOD"]
[373494064,1753021858043,-2118.56,0.0002,2]
[373494067,1753021858058,-169.76,0.0002,2]
[373494068,1753021858068,-569.87,0.0002,2]
[373494070,1753021858078,-2352.75,0.0002,2]
[373494072,1753021858087,-460.0,0.0002,2]
[373494074,1753021858098,-460.0,0.0002,2]
[373494076,1753021858108,-460.0,0.0002,2]
[373494078,1753021858117,-472.49,0.0002,2]
[373494080,1753021858127,-460.0,0.0002,2]
[373494082,1753021858138,-745.04,0.0002,2]
[373494084,1753021858148,-460.0,0.0002,2]
[373494086,1753021858158,-460.0,0.0002,2]
[373494088,1753021858167,-460.0,0.0002,2]
[373494090,1753021858177,-460.0,0.0002,2]
[373494092,1753021858187,-1885.51,0.0002,2]
[373494095,1753021858197,-881.77,0.0002,2]
[373494097,1753021858207,-460.0,0.0002,2]
[373494098,1753021858217,-460.0,0.0002,2]
[373494100,1753021858227,-2020.02247365,0.0002,2]
[373494102,1753021858237,-14346.20478963,0.0002,2]
[373494104,1753021858246,-3194.4852885,0.0002,2]
[373494106,1753021858256,-362.71658097,0.0002,2]
[373494108,1753021858265,-460.0,0.0002,2]
[373494109,1753021858275,-71021.39958333,0.0002,5]
[373494110,1753021858284,-35692.89985663,0.0002,2]
[373494111,1753021858294,-1238.54,0.0002,2]
[373494112,1753021858304,-460.0,0.0002,2]
[373494113,1753021858314,-152.06,0.0002,2]
[373494114,1753021858324,-570.6,0.0002,2]
[373494115,1753021858333,-2303.99,0.0002,2]
[373494117,1753021858342,-481.67,0.0002,2]
[373494118,1753021858351,-497.66,0.0002,2]
[373494120,1753021858361,-460.0,0.0002,2]
[373494122,1753021858371,-485.45,0.0002,2]
[373494125,1753021858380,-631.63,0.0002,2]
[373494127,1753021858390,-460.0,0.0002,2]
[373494129,1753021858399,-1438.23,0.0002,2]
[373494130,1753021858409,-542.2,0.0002,2]
[373494133,1753021858419,-595.56806391,0.0002,2]
[373494134,1753021858429,-512.76,0.0002,2]
[373494137,1753021858439,-460.0,0.0002,2]
[373494138,1753021858450,-1959.4,0.0002,2]
[373494140,1753021858460,-4000.0,0.0002,4]
[373494143,1753021858470,-460.0,0.0002,2]
[373494145,1753021858479,-618.55,0.0002,2]
[373494147,1753021858490,-460.0,0.0002,2]
[373494149,1753021858500,-507.14,0.0002,2]
[373494151,1753021858509,-500.0,0.00020013,2]
[373494153,1753021858519,-1000.0,0.00020013,2]
[373494155,1753021858529,-1000.0,0.00020013,2]
[373494157,1753021858538,-594.63074546,0.00020013,2]
[373494159,1753021858547,-500.88694253,0.00020013,2]
[373494161,1753021858557,-501.45215473,0.00020013,2]
[373494163,1753021858566,-500.0,0.00020013,2]
[373494165,1753021858576,-500.90331733,0.00020013,2]
[373494167,1753021858585,-500.0,0.00020013,2]
[373494169,1753021858595,-606.86677499,0.00020013,2]
[373494171,1753021858605,-501.18180365,0.00020013,2]
[373494173,1753021858614,-168.0,0.00020015,2]
[373494175,1753021858623,-168.0,0.0002004,2]
[373494177,1753021858632,-286.916508,0.0002004,2]
[373494179,1753021858642,-151.0,0.0002004,2]
[373494181,1753021858651,-151.0,0.0002004,2]
[373494183,1753021858661,-360.0,0.00020063,2]
[373494185,1753021858670,-151.0,0.00020066,2]
[373494187,1753021858679,-151.0,0.00020066,2]
[373494189,1753021858689,-151.0,0.00020066,2]
[373494191,1753021858698,-151.0,0.00020066,2]
[373494193,1753021858708,-198.99342437,0.00020066,2]
[373494195,1753021858717,-500.0,0.00020066,2]
[373494197,1753021858726,-500.0,0.00020066,2]
[373494198,1753021858736,-500.0,0.00020066,2]
[373494200,1753021858746,-151.0,0.00020066,2]
[373494202,1753021858755,-151.87870992,0.00020066,2]
[373494205,1753021858766,-500.0,0.00020066,2]
[373494207,1753021858776,-151.0,0.00020066,2]
[373494209,1753021858786,-500.0,0.00020066,2]
[373494211,1753021858795,-151.0,0.00020066,2]
[373494213,1753021858805,-151.0,0.00020066,2]
[373494215,1753021858814,-151.0,0.00020066,2]
[373494217,1753021858824,-500.0,0.00020066,2]
[373494219,1753021858834,-532.26403551,0.00020066,2]
[373494221,1753021858844,-7235.49339341,0.00020071,2]
[373494223,1753021858853,-1190.75245744,0.00020082,2]
[373494225,1753021858863,-2000.0,0.00020089,2]
[373494227,1753021858872,-3000.0,0.00020126,2]
[373494229,1753021858881,-4148.76559702,0.00020126,2]
[373494231,1753021858891,-500.0,0.00020174,2]
[373494233,1753021858901,-300.35007006,0.00020174,2]
[373494235,1753021858910,-1311.823714,0.00020187,2]
[373494237,1753021858919,-2722.73,0.00020188,3]
[373494239,1753021858927,-214.5637056,0.0002019,3]
[373494241,1753021858937,-2148.84444074,0.00020199,2]
[373494243,1753021858946,-12615.16111038,0.000202,3]
[373494244,1753021858955,-160.0,0.000202,3]
[373494246,1753021858964,-5491.95153547,0.0002021,2]
[373494249,1753021858974,-500.0,0.00020237,2]
[373494251,1753021858984,-1000.0,0.00020237,2]
[373494253,1753021858993,-1000.0,0.00020237,2]
[373494255,1753021859003,-501.90140821,0.00020237,2]
[373494257,1753021859013,-1075.75147067,0.00020237,2]
[373494259,1753021859021,-1007.96325211,0.00020237,2]
[373494261,1753021859031,-165.42282706,0.00020237,2]
[373494263,1753021859040,-501.80706793,0.00020237,2]
[373494265,1753021859049,-796.04,0.00020273,2]
[373494267,1753021859062,-3955.89,0.00020273,2]
[373494269,1753021859072,-1823.23,0.00020273,2]
[373494271,1753021859081,-460.0,0.00020273,2]
[373494273,1753021859090,-796.05,0.00020273,2]
[373494275,1753021859101,-151.0,0.00020273,2]
[373494277,1753021859110,-151.0,0.00020273,2]
[373494279,1753021859120,-191.36,0.00020273,2]
[373494281,1753021859129,-3230.43,0.00020273,2]
[373494283,1753021859138,-1296.1,0.00020273,2]
[373494285,1753021859148,-460.0,0.00020273,2]
[373494287,1753021859157,-196.141709,0.00020273,2]
[373494289,1753021859166,-196.141709,0.00020273,2]
[373494291,1753021859175,-342.06152639,0.00020273,2]
[373494293,1753021859185,-151.0,0.00020273,2]
[373494295,1753021859194,-460.0,0.00020273,2]
[373494297,1753021859204,-1251.21,0.00020273,2]
[373494299,1753021859217,-460.0,0.00020273,2]
[373494301,1753021859226,-460.0,0.00020273,2]
[373494303,1753021859236,-460.0,0.00020273,2]
[373494305,1753021859245,-1244.55,0.00020273,2]
[373494307,1753021859255,-462.87,0.00020273,2]
[373494309,1753021859264,-2118.56,0.00020273,2]
[373494311,1753021859274,-569.87,0.00020273,2]
[373494313,1753021859283,-2352.75,0.00020273,2]
[373494315,1753021859292,-460.0,0.00020273,2]
[373494317,1753021859301,-460.0,0.00020273,2]
[373494319,1753021859311,-460.0,0.00020273,2]
[373494321,1753021859320,-472.49,0.00020273,2]
[373494323,1753021859329,-460.0,0.00020273,2]
[373494326,1753021859342,-745.04,0.00020273,2]
[373494328,1753021859351,-460.0,0.00020273,2]
[373494330,1753021859360,-460.0,0.00020273,2]
[373494332,1753021859369,-460.0,0.00020273,2]
[373494334,1753021859378,-460.0,0.00020273,2]
[373494336,1753021859387,-1885.51,0.00020273,2]
[373494338,1753021859396,-881.77,0.00020273,2]
[373494340,1753021859405,-460.0,0.00020273,2]
[373494342,1753021859414,-460.0,0.00020273,2]
[373494344,1753021859424,-460.0,0.00020273,2]
[373494346,1753021859433,-1238.54,0.00020273,2]
[373494348,1753021859442,-460.0,0.00020273,2]
[373494350,1753021859451,-570.6,0.00020273,2]
[373494352,1753021859460,-2303.99,0.00020273,2]
[373494354,1753021859469,-481.67,0.00020273,2]
[373494356,1753021859478,-497.66,0.00020273,2]
[373494358,1753021859489,-460.0,0.00020273,2]
[373494360,1753021859498,-485.45,0.00020273,2]
[373494362,1753021859507,-631.63,0.00020273,2]
[373494364,1753021859517,-460.0,0.00020273,2]
[373494366,1753021859527,-1438.23,0.00020273,2]
[373494368,1753021859536,-542.2,0.00020273,2]
[373494370,1753021859545,-512.76,0.00020273,2]
[373494372,1753021859554,-460.0,0.00020273,2]
[373494374,1753021859564,-1959.4,0.00020273,2]
[373494376,1753021859574,-460.0,0.00020273,2]
[373494378,1753021859583,-618.55,0.00020273,2]
[373494380,1753021859592,-460.0,0.00020273,2]
[373494382,1753021859601,-507.14,0.00020273,2]
[373494384,1753021859611,-151.0,0.0002034,2]
[373494386,1753021859620,-292.0,0.0002034,2]
[373494388,1753021859629,-151.0,0.0002034,2]
[373494390,1753021859638,-500.0,0.0002034,2]
[373494392,1753021859648,-277.68948773,0.0002034,2]
[373494394,1753021859658,-518.50673032,0.0002034,2]
[373494396,1753021859667,-151.0,0.0002034,2]
[373494398,1753021859676,-500.0,0.0002034,2]
[373494400,1753021859685,-151.0,0.0002034,2]
[373494402,1753021859695,-500.0,0.0002034,2]
[373494404,1753021859704,-500.0,0.0002034,2]
[373494406,1753021859713,-247.82111675,0.0002034,2]
[373494408,1753021859723,-151.0,0.0002034,2]
[373494410,1753021859732,-500.0,0.0002034,2]
[373494412,1753021859743,-7235.49339341,0.00020372,2]
[373494414,1753021859753,-549.14,0.00020394,2]
[373494416,1753021859762,-476.42619115,0.000204,3]
[373494418,1753021859772,-1000.0,0.0002043,2]
[373494420,1753021859782,-5491.95153547,0.00020486,3]
[373494422,1753021859791,-239.84119403,0.00020494,2]
[373494424,1753021859800,-700.0,0.00020516,2]
[373494426,1753021859809,-2970.84930469,0.0002052,2]
[373494428,1753021859819,-796.04,0.00020547,2]
[373494430,1753021859828,-3955.89,0.00020547,2]
[373494432,1753021859837,-1823.23,0.00020547,2]
[373494434,1753021859846,-460.0,0.00020547,2]
[373494436,1753021859859,-796.05,0.00020547,2]
[373494438,1753021859868,-3230.43,0.00020547,2]
[373494440,1753021859878,-1296.1,0.00020547,2]
[373494442,1753021859887,-460.0,0.00020547,2]
[373494445,1753021859898,-460.0,0.00020547,2]
[373494447,1753021859907,-1251.21,0.00020547,2]
[373494449,1753021859916,-460.0,0.00020547,2]
[373494450,1753021859925,-463.69,0.00020547,2]
[373494452,1753021859935,-460.0,0.00020547,2]
[373494454,1753021859944,-1244.55,0.00020547,2]
[373494456,1753021859955,-2118.56,0.00020547,2]
[373494458,1753021859964,-569.87,0.00020547,2]
[373494460,1753021859973,-2352.75,0.00020547,2]
[373494462,1753021859983,-460.0,0.00020547,2]
[373494465,1753021859998,-460.0,0.00020547,2]
[373494467,1753021860007,-460.0,0.00020547,2]
[373494469,1753021860018,-472.49,0.00020547,2]
[373494471,1753021860027,-460.0,0.00020547,2]
[373494473,1753021860037,-745.04,0.00020547,2]
[373494474,1753021860048,-460.0,0.00020547,2]
[373494477,1753021860062,-460.0,0.00020547,2]
[373494479,1753021860072,-460.0,0.00020547,2]
[373494481,1753021860082,-1885.51,0.00020547,2]
[373494483,1753021860091,-881.77,0.00020547,2]
[373494485,1753021860102,-460.0,0.00020547,2]
[373494487,1753021860112,-460.0,0.00020547,2]
[373494489,1753021860122,-471.55391111,0.00020547,2]
[373494491,1753021860133,-1238.54,0.00020547,2]
[373494493,1753021860143,-460.0,0.00020547,2]
[373494495,1753021860152,-570.6,0.00020547,2]
[373494497,1753021860161,-2303.99,0.00020547,2]
[373494499,1753021860171,-481.67,0.00020547,2]
[373494501,1753021860181,-497.66,0.00020547,2]
[373494503,1753021860191,-460.0,0.00020547,2]
[373494505,1753021860200,-485.45,0.00020547,2]
[373494507,1753021860210,-631.63,0.00020547,2]
[373494509,1753021860219,-460.0,0.00020547,2]
[373494511,1753021860228,-151.0,0.00020547,2]
[373494513,1753021860239,-268.240692,0.00020547,2]
[373494515,1753021860249,-1438.23,0.00020547,2]
[373494517,1753021860258,-542.2,0.00020547,2]
[373494519,1753021860268,-268.240692,0.00020547,2]
[373494521,1753021860277,-224.761876,0.00020547,2]
[373494523,1753021860287,-512.76,0.00020547,2]
[373494525,1753021860296,-224.761876,0.00020547,2]
[373494527,1753021860306,-460.0,0.00020547,2]
[373494529,1753021860315,-1959.4,0.00020547,2]
[373494531,1753021860326,-151.0,0.00020547,2]
[373494533,1753021860336,-460.0,0.00020547,2]
[373494535,1753021860345,-618.55,0.00020547,2]
[373494537,1753021860354,-507.14,0.00020547,2]
[373494539,1753021860363,-460.0,0.00020547,2]
[373494541,1753021860373,-1500.0,0.00020561,2]
[373494543,1753021860382,-354.25622652,0.00020561,2]
[373494545,1753021860391,-1269.0,0.00020605,2]
[373494547,1753021860400,-460.0,0.00020611,2]
[373494549,1753021860409,-199.784375,0.00020614,2]
[373494551,1753021860419,-500.0,0.00020614,2]
[373494553,1753021860428,-252.36597427,0.00020614,2]
[373494555,1753021860437,-151.0,0.00020614,2]
[373494557,1753021860447,-151.0,0.00020614,2]
[373494559,1753021860455,-271.86983277,0.00020614,2]
[373494561,1753021860465,-500.0,0.00020614,2]
[373494563,1753021860475,-7235.49339341,0.00020663,2]
[373494565,1753021860484,-5491.95153547,0.00020762,3]
[373494567,1753021860494,-1500.0,0.00020785,2]
[373494569,1753021860504,-511.01879794,0.00020785,2]
[373494571,1753021860513,-512.848631,0.0002079,2]
[373494573,1753021860522,-512.848631,0.0002079,2]
[373494575,1753021860531,-796.04,0.00020821,2]
[373494577,1753021860541,-3955.89,0.00020821,2]
[373494579,1753021860550,-1823.23,0.00020821,2]
[373494581,1753021860559,-460.0,0.00020821,2]
[373494583,1753021860569,-796.05,0.00020821,2]
[373494585,1753021860578,-3230.43,0.00020821,2]
[373494587,1753021860587,-1296.1,0.00020821,2]
[373494589,1753021860596,-460.0,0.00020821,2]
[373494591,1753021860606,-460.0,0.00020821,2]
[373494593,1753021860615,-1251.21,0.00020821,2]
[373494595,1753021860624,-460.0,0.00020821,2]
[373494597,1753021860633,-599.530675,0.00020821,2]
[373494599,1753021860643,-151.0,0.00020821,2]
[373494601,1753021860652,-599.530675,0.00020821,2]
[373494603,1753021860661,-488.9923924,0.00020821,2]
[373494605,1753021860671,-1244.55,0.00020821,2]
[373494607,1753021860680,-2118.56,0.00020821,2]
[373494609,1753021860689,-569.87,0.00020821,2]
[373494611,1753021860698,-2352.75,0.00020821,2]
[373494613,1753021860707,-460.0,0.00020821,2]
[373494615,1753021860716,-460.0,0.00020821,2]
[373494617,1753021860725,-460.0,0.00020821,2]
[373494619,1753021860734,-472.49,0.00020821,2]
[373494621,1753021860744,-460.0,0.00020821,2]
[373494623,1753021860754,-745.04,0.00020821,2]
[373494625,1753021860763,-460.0,0.00020821,2]
[373494627,1753021860772,-460.0,0.00020821,2]
[373494629,1753021860782,-460.0,0.00020821,2]
[373494631,1753021860791,-1885.51,0.00020821,2]
[373494633,1753021860800,-881.77,0.00020821,2]
[373494635,1753021860810,-460.0,0.00020821,2]
[373494637,1753021860819,-460.0,0.00020821,2]
[373494639,1753021860829,-1238.54,0.00020821,2]
[373494641,1753021860838,-460.0,0.00020821,2]
[373494657,1753021860979,-570.6,0.00020821,2]
[373494660,1753021860991,-2303.99,0.00020821,2]
[373494662,1753021861000,-481.67,0.00020821,2]
[373494664,1753021861010,-497.66,0.00020821,2]
[373494665,1753021861019,-460.0,0.00020821,2]
[373494668,1753021861030,-485.45,0.00020821,2]
[373494670,1753021861039,-631.63,0.00020821,2]
[373494672,1753021861049,-460.0,0.00020821,2]
[373494674,1753021861060,-1438.23,0.00020821,2]
[373494676,1753021861069,-542.2,0.00020821,2]
[373494678,1753021861079,-512.76,0.00020821,2]
[373494680,1753021861088,-460.0,0.00020821,2]
[373494682,1753021861099,-1959.4,0.00020821,2]
[373494684,1753021861108,-460.0,0.00020821,2]
[373494686,1753021861117,-618.55,0.00020821,2]
[373494688,1753021861127,-507.14,0.00020821,2]
[373494690,1753021861137,-460.0,0.00020821,2]
[373494692,1753021861146,-647.0,0.00020822,2]
[373494694,1753021861155,-375.179,0.00020822,2]
[373494696,1753021861164,-417.607,0.00020822,2]
[373494698,1753021861174,-500.0,0.00020888,2]
[373494700,1753021861184,-500.0,0.00020888,2]
[373494702,1753021861193,-182.834789,0.00020941,8]
[373494704,1753021861203,-46890.1666762,0.00021,4]
[373494722,1753021861360,-24798.58314826,0.00021,4]
[373494725,1753021861377,-169.85909588,0.00017808,2]
[373494727,1753021861387,-194.95090412,0.00021,4]
[373494729,1753021861398,-2093.62556752,0.00021,4]
[373494731,1753021861409,-1438.43779679,0.00021,4]
[373494733,1753021861421,-974.5845965,0.00021,4]
[373494736,1753021861432,-26774.05034641,0.00021,4]
[373494738,1753021861442,-5491.95153547,0.00021038,4]
[373494740,1753021861450,-7235.49339341,0.00021091,2]
[373494742,1753021861460,-796.04,0.00021095,2]
[373494744,1753021861469,-3955.89,0.00021095,2]
[373494746,1753021861478,-1823.23,0.00021095,2]
[373494748,1753021861489,-460.0,0.00021095,2]
[373494750,1753021861498,-796.05,0.00021095,2]
[373494752,1753021861507,-3230.43,0.00021095,2]
[373494754,1753021861517,-1296.1,0.00021095,2]
[373494756,1753021861526,-460.0,0.00021095,2]
[373494758,1753021861535,-1251.21,0.00021095,2]
[373494760,1753021861545,-460.0,0.00021095,2]
[373494762,1753021861554,-1244.55,0.00021095,2]
[373494764,1753021861564,-2118.56,0.00021095,2]
[373494766,1753021861573,-569.87,0.00021095,2]
[373494768,1753021861583,-2352.75,0.00021095,2]
[373494770,1753021861592,-460.0,0.00021095,2]
[373494772,1753021861601,-460.0,0.00021095,2]
[373494774,1753021861611,-460.0,0.00021095,2]
[373494776,1753021861622,-472.49,0.00021095,2]
[373494778,1753021861632,-199.14,0.00021095,2]
[373494780,1753021861642,-745.04,0.00021095,2]
[373494782,1753021861652,-460.0,0.00021095,2]
[373494784,1753021861662,-460.0,0.00021095,2]
[373494786,1753021861672,-460.0,0.00021095,2]
[373494788,1753021861681,-1885.51,0.00021095,2]
[373494790,1753021861691,-881.77,0.00021095,2]
[373494792,1753021861700,-460.0,0.00021095,2]
[373494794,1753021861709,-460.0,0.00021095,2]
[373494796,1753021861718,-1238.54,0.00021095,2]
[373494798,1753021861728,-460.0,0.00021095,2]
[373494799,1753021861740,-570.6,0.00021095,2]
[373494801,1753021861749,-2303.99,0.00021095,2]
[373494803,1753021861759,-481.67,0.00021095,2]
[373494806,1753021861768,-497.66,0.00021095,2]
[373494808,1753021861778,-460.0,0.00021095,2]
[373494810,1753021861787,-485.45,0.00021095,2]
[373494812,1753021861796,-631.63,0.00021095,2]
[373494814,1753021861805,-460.0,0.00021095,2]
[373494816,1753021861815,-542.2,0.00021095,2]
[373494818,1753021861824,-512.76,0.00021095,2]
[373494820,1753021861834,-460.0,0.00021095,2]
[373494822,1753021861844,-1959.4,0.00021095,2]
[373494824,1753021861853,-618.55,0.00021095,2]
[373494826,1753021861863,-507.14,0.00021095,2]
[373494828,1753021861872,-266.18,0.00021095,2]
[373494830,1753021861881,-2042.18048329,0.00021109,2]
[373494832,1753021861890,-617.78,0.00021123,2]
[373494834,1753021861899,-2970.84930469,0.0002114,2]
[373494836,1753021861910,-560.0,0.00021158,2]
[373494838,1753021861920,-500.0,0.00021162,2]
[373494840,1753021861929,-500.0,0.00021162,2]
[373494842,1753021861938,-151.0,0.00021279,2]
[373494843,1753021861947,-151.0,0.00021279,2]
[373494845,1753021861957,-151.0,0.00021279,2]
[373494848,1753021861967,-5491.95153547,0.00021314,5]
[373494850,1753021861977,-599.0,0.00021317,2]
[373494852,1753021861989,-389.20231297,0.00021333,2]
[373494854,1753021861999,-7235.49339347,0.00021365,2]
[373494856,1753021862009,-796.04,0.00021369,2]
[373494858,1753021862019,-3955.89,0.00021369,2]
[373494860,1753021862028,-1823.23,0.00021369,2]
[373494862,1753021862037,-109.22196683,0.00021369,2]
[373494865,1753021862058,-350.77803317,0.00021369,2]
[373494866,1753021862067,-796.05,0.00021369,2]
[373494868,1753021862077,-1451.39032164,0.00021369,2]
[373494876,1753021862142,5000.0,0.000162,2]
[373495035,1753021863828,-65.50192277,0.00016438,2]
[373495038,1753021863844,-394.49807723,0.00016438,2]
[373495040,1753021863854,-460.0,0.00016438,2]
[373495042,1753021863864,-460.0,0.00016438,2]
[373495044,1753021863873,-460.0,0.00016986,2]
[373495046,1753021863883,-460.0,0.0001726,2]
[373495048,1753021863892,-151.0,0.00019792,2]
[373495063,1753021864022,-151.0,0.00020066,2]
[373495065,1753021864040,-1779.03967836,0.00021369,2]
[373495067,1753021864050,-437.53706406,0.00021369,2]
[373495070,1753021864066,-858.56293594,0.00021369,2]
[373495072,1753021864076,-433.09461194,0.00021369,2]
[373495074,1753021864087,-26.90538806,0.00021369,2]
[373495076,1753021864099,-1251.21,0.00021369,2]
[373495078,1753021864108,-460.0,0.00021369,2]
[373495080,1753021864118,-1244.55,0.00021369,2]
[373495082,1753021864128,-465.36541808,0.00021369,2]
[373495103,1753021864325,-303.81059378,0.00016438,2]
[373495105,1753021864341,-196.18940622,0.00016438,2]
[373495107,1753021864351,-460.0,0.00016438,2]
[373495109,1753021864360,-460.0,0.00016438,2]
[373495111,1753021864369,-1000.0,0.00016438,2]
[373495113,1753021864379,-460.0,0.00016438,2]
[373495115,1753021864388,-500.0,0.00016438,2]
[373495117,1753021864397,-460.0,0.00016438,2]
[373495119,1753021864407,-460.0,0.00016712,2]
[373495121,1753021864417,-460.0,0.00016986,2]
[373495123,1753021864426,-460.0,0.00017534,2]
[373495125,1753021864436,-460.0,0.00017808,2]
[373495127,1753021864446,-460.0,0.00018082,2]
[373495129,1753021864455,-460.0,0.00018356,2]
[373495131,1753021864464,-460.0,0.0001863,2]
[373495133,1753021864474,-334.57719461,0.00018904,2]
[373495135,1753021864483,-569.87,0.00021369,2]
[373495137,1753021864492,-460.0,0.00021369,2]
[373495139,1753021864501,-2352.75,0.00021369,2]
[373495141,1753021864511,-460.0,0.00021369,2]
[373495143,1753021864520,-460.0,0.00021369,2]
[373495145,1753021864529,-472.49,0.00021369,2]
[373495147,1753021864539,-692.99481197,0.00021369,2]
[373495150,1753021864556,-460.0,0.0001726,2]
[373495152,1753021864566,-52.04518803,0.00021369,2]
[373495154,1753021864576,-588.03,0.00021369,2]
[373495156,1753021864586,-460.0,0.00021369,2]
[373495158,1753021864595,-98.19267275,0.00021369,2]
[373495161,1753021864612,-377.94,0.00016438,2]
[373495163,1753021864622,-122.5908867,0.00021369,2]
[373495165,1753021864635,-363.99388432,0.00021369,2]
[373495167,1753021864644,-1885.51,0.00021369,2]
[373495169,1753021864653,-881.77,0.00021369,2]
[373495171,1753021864663,-301.93656983,0.00021369,2]
[373495176,1753021864718,-12057.88222952,0.00016338,2]
[373495177,1753021864728,-158.06343017,0.00021369,2]
[373495178,1753021864739,-460.0,0.00021369,2]
[373495179,1753021864748,-1238.54,0.00021369,2]
[373495180,1753021864757,-460.0,0.00021369,2]
[373495181,1753021864766,-570.6,0.00021369,2]
[373495182,1753021864774,-2303.99,0.00021369,2]
[373495183,1753021864783,-481.67,0.00021369,2]
[373495184,1753021864793,-497.66,0.00021369,2]
[373495185,1753021864802,-199.12593399,0.00021369,2]
[373495186,1753021864811,-485.45,0.00021369,2]
[373495187,1753021864821,-631.63,0.00021369,2]
[373495188,1753021864829,-460.0,0.00021369,2]
[373495189,1753021864838,-542.2,0.00021369,2]
[373495190,1753021864848,-512.76,0.00021369,2]
[373495191,1753021864857,-470.05279057,0.00021369,2]
[373495192,1753021864866,-1959.4,0.00021369,2]
[373495193,1753021864875,-618.55,0.00021369,2]
[373495194,1753021864883,-507.14,0.00021369,2]
[373495195,1753021864892,-3000.0,0.000214,2]
[373495196,1753021864901,-151.0,0.000214,2]
[373495197,1753021864910,-151.0,0.000214,2]
[373495198,1753021864919,-151.0,0.000214,2]
[373495199,1753021864928,-174.767272,0.000214,2]
[373495200,1753021864937,-174.767272,0.000214,2]
[373495201,1753021864946,-968.0,0.00021404,2]
[373495202,1753021864955,-3000.0,0.0002141,2]
[373495203,1753021864964,-3000.0,0.0002142,2]
[373495204,1753021864974,-3000.0,0.0002143,2]
[373495206,1753021864983,-500.0,0.00021436,2]
[373495207,1753021864993,-500.0,0.00021436,2]
[373495209,1753021865002,-3000.0,0.0002144,2]
[373495211,1753021865012,-3000.0,0.0002145,2]
[373495213,1753021865021,-3000.0,0.0002146,2]
[373495215,1753021865031,-3000.0,0.0002147,2]
[373495217,1753021865040,-3000.0,0.0002148,2]
[373495219,1753021865050,-3000.0,0.0002149,2]
[373495221,1753021865062,-2212.78357467,0.000215,2]
[373495223,1753021865072,-3000.0,0.000215,2]
[373495225,1753021865081,-3000.0,0.0002151,2]
[373495227,1753021865091,-151.0,0.0002151,2]
[373495229,1753021865100,-151.0,0.0002151,2]
[373495230,1753021865110,-2148.84444074,0.0002152,2]
[373495232,1753021865120,-3000.0,0.0002152,2]
[373495235,1753021865131,-3000.0,0.0002153,2]
[373495236,1753021865141,-3000.0,0.0002154,2]
[373495238,1753021865150,-3000.0,0.0002155,2]
[373495240,1753021865159,-3000.0,0.0002156,2]
[373495242,1753021865168,-3000.0,0.0002157,2]
[373495244,1753021865178,-5491.95153547,0.0002159,5]
[373495246,1753021865188,-700.0,0.00021612,2]
[373495248,1753021865197,-796.04,0.00021643,2]
[373495250,1753021865207,-1823.23,0.00021643,2]
[373495252,1753021865216,-460.0,0.00021643,2]
[373495254,1753021865225,-796.05,0.00021643,2]
[373495256,1753021865235,-3230.43,0.00021643,2]
[373495258,1753021865246,-1296.1,0.00021643,2]
[373495260,1753021865255,-460.0,0.00021643,2]
[373495262,1753021865265,-1251.21,0.00021643,2]